[Event "*** Titled Tuesday Blitz"]
[Site "Chess.com"]
[Date "2019.07.02"]
[Round "8"]
[White "kosmeg"]
[Black "731291"]
[Result "0-1"]
[WhiteElo "2467"]
[BlackElo "2677"]
[TimeControl "180+2"]
[EndTime "14:45:04 PDT"]
[Termination "731291 won by resignation"]

1. d4 {[%clk 0:03:01.9]} 1... e6 {[%clk 0:02:59.7]} 2. c4 {[%clk 0:03:02.9]}
2... Nf6 {[%clk 0:02:59.1]} 3. g3 {[%clk 0:03:04]} 3... d5 {[%clk 0:02:58.7]} 4.
Bg2 {[%clk 0:03:05.2]} 4... Bb4+ {[%clk 0:02:59.8]} 5. Nd2 {[%clk 0:03:05.3]}
5... O-O {[%clk 0:02:58.7]} 6. Nf3 {[%clk 0:03:06.4]} 6... dxc4 {[%clk
0:02:56.4]} 7. Qc2 {[%clk 0:03:07.3]} 7... a5 {[%clk 0:02:56.9]} 8. Qxc4 {[%clk
0:02:51.8]} 8... Ra7 {[%clk 0:02:51]} 9. O-O {[%clk 0:02:48.7]} 9... b6 {[%clk
0:02:52.2]} 10. Qc2 {[%clk 0:02:35.3]} 10... Ba6 {[%clk 0:02:51.8]} 11. Re1
{[%clk 0:02:33.1]} 11... c5 {[%clk 0:02:46.9]} 12. a3 {[%clk 0:02:32]} 12...
Bxd2 {[%clk 0:02:47.5]} 13. Qxd2 {[%clk 0:02:29.7]} 13... Rd7 {[%clk 0:02:45.1]}
14. b4 {[%clk 0:02:08.3]} 14... cxd4 {[%clk 0:02:37.1]} 15. Ne5 {[%clk
0:02:01.1]} 15... Rd6 {[%clk 0:02:20.8]} 16. b5 {[%clk 0:01:48.7]} 16... Bxb5
{[%clk 0:02:06.7]} 17. a4 {[%clk 0:01:50.1]} 17... Bc6 {[%clk 0:01:47.9]} 18.
Ba3 {[%clk 0:01:45.4]} 18... Bxg2 {[%clk 0:01:42.5]} 19. Kxg2 {[%clk 0:01:47.3]}
19... Ne4 {[%clk 0:01:40.9]} 20. Qc2 {[%clk 0:01:32.4]} 20... Nc5 {[%clk
0:01:40]} 21. Bxc5 {[%clk 0:01:30.2]} 21... bxc5 {[%clk 0:01:41.9]} 22. Qxc5
{[%clk 0:01:31.6]} 22... Rd5 {[%clk 0:01:39.8]} 0-1

[Event "*** Titled Tuesday Blitz"]
[Site "Chess.com"]
[Date "2019.07.02"]
[Round "8"]
[White "IMAghasiyevKamal"]
[Black "VerdeNotte"]
[Result "1-0"]
[WhiteElo "2554"]
[BlackElo "2807"]
[TimeControl "180+2"]
[EndTime "14:45:29 PDT"]
[Termination "IMAghasiyevKamal won by resignation"]

1. d4 {[%clk 0:03:01.6]} 1... Nf6 {[%clk 0:02:56.7]} 2. c4 {[%clk 0:03:01.9]}
2... e6 {[%clk 0:02:58]} 3. g3 {[%clk 0:03:02.1]} 3... c5 {[%clk 0:02:57.5]} 4.
d5 {[%clk 0:03:02.5]} 4... b5 {[%clk 0:02:58.4]} 5. dxe6 {[%clk 0:03:01.7]} 5...
fxe6 {[%clk 0:02:58.9]} 6. Bg2 {[%clk 0:03:02.7]} 6... d5 {[%clk 0:03:00.2]} 7.
cxd5 {[%clk 0:02:54.7]} 7... Bb7 {[%clk 0:03:01.1]} 8. Nf3 {[%clk 0:02:51.5]}
8... exd5 {[%clk 0:02:56.9]} 9. O-O {[%clk 0:02:45.7]} 9... Be7 {[%clk
0:02:57.9]} 10. Ng5 {[%clk 0:02:40.6]} 10... Qb6 {[%clk 0:02:52.1]} 11. a4
{[%clk 0:02:38.9]} 11... a6 {[%clk 0:02:48.4]} 12. Nc3 {[%clk 0:02:38.5]} 12...
d4 {[%clk 0:02:46]} 13. a5 {[%clk 0:02:34.3]} 13... Qa7 {[%clk 0:02:44.6]} 14.
Nce4 {[%clk 0:02:25.6]} 14... Nxe4 {[%clk 0:02:39.5]} 15. Nxe4 {[%clk
0:02:24.2]} 15... Nd7 {[%clk 0:02:32.4]} 16. e3 {[%clk 0:02:22.6]} 16... Nf6
{[%clk 0:02:28.2]} 17. Nxf6+ {[%clk 0:02:15]} 17... Bxf6 {[%clk 0:02:30.1]} 18.
exd4 {[%clk 0:02:14.9]} 18... Bxg2 {[%clk 0:02:29.4]} 19. Re1+ {[%clk
0:02:13.2]} 19... Kf8 {[%clk 0:02:27]} 20. Kxg2 {[%clk 0:02:13.8]} 20... Bxd4
{[%clk 0:02:26]} 21. Qf3+ {[%clk 0:02:13.2]} 21... Kg8 {[%clk 0:02:25.9]} 22.
Qd5+ {[%clk 0:02:07.1]} 22... Kf8 {[%clk 0:02:26.8]} 23. Bf4 {[%clk 0:02:07.8]}
23... g6 {[%clk 0:02:05.5]} 24. Bd6+ {[%clk 0:02:04.1]} 24... Kg7 {[%clk
0:02:06.7]} 25. Re7+ {[%clk 0:02:05.2]} 25... Qxe7 {[%clk 0:02:02.6]} 26. Bxe7
{[%clk 0:02:07.1]} 26... Bxb2 {[%clk 0:01:54.1]} 27. Re1 {[%clk 0:02:00.3]}
27... Rhe8 {[%clk 0:01:40.1]} 28. Qd7 {[%clk 0:01:56.2]} 28... Kh8 {[%clk
0:01:38]} 29. Bf6+ {[%clk 0:01:56.2]} 29... Bxf6 {[%clk 0:01:38.5]} 30. Rxe8+
{[%clk 0:01:57.2]} 30... Rxe8 {[%clk 0:01:39.7]} 31. Qxe8+ {[%clk 0:01:59.1]}
31... Kg7 {[%clk 0:01:41.3]} 32. Qc6 {[%clk 0:01:57.3]} 32... c4 {[%clk
0:01:42.5]} 33. Qxa6 {[%clk 0:01:58.2]} 33... c3 {[%clk 0:01:43.8]} 34. Qb7+
{[%clk 0:01:58.5]} 34... Kh6 {[%clk 0:01:44.7]} 35. Qxb5 {[%clk 0:01:59.5]}
35... Bg5 {[%clk 0:01:44.4]} 36. Qc4 {[%clk 0:01:59.8]} 36... Bd2 {[%clk
0:01:45.6]} 37. a6 {[%clk 0:02:00.6]} 37... c2 {[%clk 0:01:46.8]} 38. Qxc2
{[%clk 0:02:01.1]} 1-0

[Event "*** Titled Tuesday Blitz"]
[Site "Chess.com"]
[Date "2019.07.02"]
[Round "8"]
[White "telarubo96"]
[Black "GuerrieroFromLevant"]
[Result "1-0"]
[WhiteElo "2322"]
[BlackElo "2241"]
[TimeControl "180+2"]
[EndTime "14:45:37 PDT"]
[Termination "telarubo96 won by resignation"]

1. e4 {[%clk 0:03:01.9]} 1... e6 {[%clk 0:03:00.7]} 2. d4 {[%clk 0:03:02.7]}
2... d5 {[%clk 0:03:01.3]} 3. Bd3 {[%clk 0:03:04.3]} 3... dxe4 {[%clk
0:03:01.7]} 4. Bxe4 {[%clk 0:03:06.2]} 4... Nf6 {[%clk 0:03:03.3]} 5. Bf3 {[%clk
0:03:07.4]} 5... c5 {[%clk 0:03:04.8]} 6. Ne2 {[%clk 0:03:08.5]} 6... Nc6 {[%clk
0:03:06]} 7. Be3 {[%clk 0:03:05.6]} 7... cxd4 {[%clk 0:03:07.1]} 8. Nxd4 {[%clk
0:03:07.5]} 8... Ne5 {[%clk 0:03:08.5]} 9. Nc3 {[%clk 0:03:06.1]} 9... a6 {[%clk
0:03:09]} 10. Qe2 {[%clk 0:03:05.7]} 10... Be7 {[%clk 0:03:01.8]} 11. O-O-O
{[%clk 0:03:01.2]} 11... Qa5 {[%clk 0:03:02.3]} 12. Kb1 {[%clk 0:02:57.9]} 12...
O-O {[%clk 0:03:01.5]} 13. h4 {[%clk 0:02:34.1]} 13... Bd7 {[%clk 0:02:54.9]}
14. h5 {[%clk 0:02:31.4]} 14... Nxf3 {[%clk 0:02:53.8]} 15. gxf3 {[%clk
0:02:29.7]} 15... Bb4 {[%clk 0:02:41.7]} 16. Ne4 {[%clk 0:02:25.2]} 16... Nxe4
{[%clk 0:02:36.5]} 17. fxe4 {[%clk 0:02:27.1]} 17... e5 {[%clk 0:02:34]} 18. Nf5
{[%clk 0:02:01.2]} 18... Bxf5 {[%clk 0:02:27.7]} 19. exf5 {[%clk 0:02:03.1]}
19... Rac8 {[%clk 0:02:22.9]} 20. Rhg1 {[%clk 0:02:01.1]} 20... Be7 {[%clk
0:02:02.7]} 21. Qg4 {[%clk 0:01:38.2]} 21... Bf6 {[%clk 0:01:59]} 22. Bh6 {[%clk
0:01:37.1]} 22... Qc5 {[%clk 0:01:26]} 23. Bxg7 {[%clk 0:01:29.6]} 23... Qxc2+
{[%clk 0:01:26.7]} 24. Ka1 {[%clk 0:01:31]} 24... Qxd1+ {[%clk 0:01:20]} 25.
Rxd1 {[%clk 0:01:30.9]} 25... Bxg7 {[%clk 0:01:19.3]} 26. f6 {[%clk 0:01:31.1]}
1-0

[Event "*** Titled Tuesday Blitz"]
[Site "Chess.com"]
[Date "2019.07.02"]
[Round "8"]
[White "Alex_Terzi"]
[Black "Qvalda"]
[Result "0-1"]
[WhiteElo "2464"]
[BlackElo "2511"]
[TimeControl "180+2"]
[EndTime "14:45:52 PDT"]
[Termination "Qvalda won by resignation"]

1. d4 {[%clk 0:03:00.6]} 1... Nf6 {[%clk 0:02:59.9]} 2. Bf4 {[%clk 0:03:01.1]}
2... c5 {[%clk 0:02:53]} 3. d5 {[%clk 0:03:01.2]} 3... d6 {[%clk 0:02:51.4]} 4.
Nc3 {[%clk 0:02:59.3]} 4... g6 {[%clk 0:02:52.2]} 5. e4 {[%clk 0:02:56.1]} 5...
Bg7 {[%clk 0:02:49.7]} 6. Nf3 {[%clk 0:02:56.4]} 6... O-O {[%clk 0:02:49.4]} 7.
Bc4 {[%clk 0:02:47.4]} 7... b5 {[%clk 0:02:46.8]} 8. Bxb5 {[%clk 0:02:44.5]}
8... Nxe4 {[%clk 0:02:47.3]} 9. Nxe4 {[%clk 0:02:42]} 9... Qa5+ {[%clk
0:02:48.3]} 10. c3 {[%clk 0:02:38.6]} 10... Qxb5 {[%clk 0:02:48.3]} 11. Qe2
{[%clk 0:02:37.9]} 11... Qxe2+ {[%clk 0:02:44.6]} 12. Kxe2 {[%clk 0:02:39]}
12... Ba6+ {[%clk 0:02:45.3]} 13. Kd2 {[%clk 0:02:34.2]} 13... Bc4 {[%clk
0:02:43.3]} 14. Rhe1 {[%clk 0:02:18.5]} 14... Bxd5 {[%clk 0:02:42.9]} 15. Bg5
{[%clk 0:01:59.6]} 15... Nc6 {[%clk 0:02:34.1]} 16. Kc2 {[%clk 0:01:59]} 16...
h6 {[%clk 0:02:32.3]} 17. Bh4 {[%clk 0:01:58.7]} 17... g5 {[%clk 0:02:29.8]} 18.
Bg3 {[%clk 0:01:46.5]} 18... Bxe4+ {[%clk 0:02:15.2]} 19. Rxe4 {[%clk
0:01:45.9]} 19... f5 {[%clk 0:02:16.5]} 20. Re6 {[%clk 0:01:27]} 20... f4 {[%clk
0:02:14.5]} 21. Bh4 {[%clk 0:01:28.3]} 21... gxh4 {[%clk 0:02:00.5]} 22. Nxh4
{[%clk 0:01:30.2]} 22... Rf6 {[%clk 0:01:56.1]} 23. Re4 {[%clk 0:01:30]} 23...
e5 {[%clk 0:01:54.8]} 24. Rd1 {[%clk 0:01:30.9]} 24... Kf7 {[%clk 0:01:53.5]}
25. Ra4 {[%clk 0:01:32.2]} 25... a5 {[%clk 0:01:53.4]} 26. Nf3 {[%clk
0:01:31.4]} 26... Ke6 {[%clk 0:01:53.2]} 27. Nd2 {[%clk 0:01:31.9]} 27... d5
{[%clk 0:01:51.1]} 28. Nb3 {[%clk 0:01:32.8]} 28... Bf8 {[%clk 0:01:44.9]} 29.
f3 {[%clk 0:01:31.6]} 29... c4 {[%clk 0:01:38.4]} 30. Nd2 {[%clk 0:01:32]} 30...
Rg6 {[%clk 0:01:35.7]} 31. Rg1 {[%clk 0:01:31.3]} 31... Bc5 {[%clk 0:01:35.8]}
32. Re1 {[%clk 0:01:30.7]} 32... Rxg2 {[%clk 0:01:33.7]} 0-1

[Event "*** Titled Tuesday Blitz"]
[Site "Chess.com"]
[Date "2019.07.02"]
[Round "8"]
[White "saraswathii"]
[Black "pandamaster3000"]
[Result "1-0"]
[WhiteElo "2334"]
[BlackElo "2280"]
[TimeControl "180+2"]
[EndTime "14:46:37 PDT"]
[Termination "saraswathii won by resignation"]

1. d4 {[%clk 0:03:01.9]} 1... Nf6 {[%clk 0:03:00.2]} 2. Bf4 {[%clk 0:02:53.3]}
2... g6 {[%clk 0:03:01.1]} 3. e3 {[%clk 0:02:54.1]} 3... Bg7 {[%clk 0:03:02.5]}
4. Nf3 {[%clk 0:02:55.1]} 4... O-O {[%clk 0:03:04]} 5. Be2 {[%clk 0:02:56.1]}
5... d6 {[%clk 0:03:05.4]} 6. O-O {[%clk 0:02:57.2]} 6... c6 {[%clk 0:03:06.9]}
7. h3 {[%clk 0:02:58.4]} 7... Nbd7 {[%clk 0:03:07.9]} 8. c3 {[%clk 0:02:59.4]}
8... Qe8 {[%clk 0:03:05.7]} 9. Nbd2 {[%clk 0:02:59.9]} 9... e5 {[%clk
0:03:06.9]} 10. dxe5 {[%clk 0:02:59.3]} 10... dxe5 {[%clk 0:03:08.8]} 11. Bg3
{[%clk 0:03:00.5]} 11... Qe7 {[%clk 0:03:03]} 12. Nc4 {[%clk 0:03:00.3]} 12...
Ne4 {[%clk 0:02:20.2]} 13. Bh2 {[%clk 0:02:56.3]} 13... Rd8 {[%clk 0:02:15.8]}
14. Qc2 {[%clk 0:02:56.1]} 14... f5 {[%clk 0:02:16.3]} 15. a4 {[%clk 0:02:51.5]}
15... b5 {[%clk 0:02:05.9]} 16. axb5 {[%clk 0:02:51.9]} 16... cxb5 {[%clk
0:02:07.8]} 17. Na5 {[%clk 0:02:52.7]} 17... Qc5 {[%clk 0:01:47.4]} 18. Qb3+
{[%clk 0:02:52.1]} 18... Kh8 {[%clk 0:01:44.3]} 19. Qxb5 {[%clk 0:02:52.8]}
19... Qxb5 {[%clk 0:01:20.6]} 20. Bxb5 {[%clk 0:02:54.7]} 20... Rb8 {[%clk
0:01:06.9]} 21. Nc6 {[%clk 0:02:53.6]} 21... Rxb5 {[%clk 0:01:06.9]} 22. Nxd8
{[%clk 0:02:54.2]} 22... Kg8 {[%clk 0:00:55.6]} 23. Rxa7 {[%clk 0:02:51.8]}
23... Rxb2 {[%clk 0:00:51.2]} 24. Nc6 {[%clk 0:02:37.1]} 24... Kf8 {[%clk
0:00:40.5]} 25. Ra8 {[%clk 0:02:24.6]} 25... Nb6 {[%clk 0:00:39.2]} 26. Rb8
{[%clk 0:02:25.3]} 26... Nxc3 {[%clk 0:00:40.4]} 27. Na7 {[%clk 0:02:19.1]}
27... e4 {[%clk 0:00:32.5]} 28. Ng5 {[%clk 0:02:10.7]} 28... Ne2+ {[%clk
0:00:24.7]} 29. Kh1 {[%clk 0:02:10.6]} 29... Ke7 {[%clk 0:00:09.3]} 30. Rxb6
{[%clk 0:02:06.4]} 1-0

[Event "*** Titled Tuesday Blitz"]
[Site "Chess.com"]
[Date "2019.07.02"]
[Round "8"]
[White "witcher8"]
[Black "Semen_Khanin"]
[Result "0-1"]
[WhiteElo "2444"]
[BlackElo "2722"]
[TimeControl "180+2"]
[EndTime "14:47:03 PDT"]
[Termination "Semen_Khanin won by resignation"]

1. e4 {[%clk 0:03:01.9]} 1... c5 {[%clk 0:03:00.6]} 2. Nf3 {[%clk 0:03:01.8]}
2... Nc6 {[%clk 0:03:01.8]} 3. d4 {[%clk 0:03:01.9]} 3... cxd4 {[%clk
0:03:03.2]} 4. Nxd4 {[%clk 0:03:03.8]} 4... g6 {[%clk 0:03:04.9]} 5. Nc3 {[%clk
0:03:03.3]} 5... Bg7 {[%clk 0:03:06.2]} 6. Be3 {[%clk 0:03:04.2]} 6... Nf6
{[%clk 0:03:07.5]} 7. Bc4 {[%clk 0:03:03.7]} 7... O-O {[%clk 0:03:05.5]} 8. Bb3
{[%clk 0:03:00.9]} 8... Re8 {[%clk 0:03:05.1]} 9. O-O {[%clk 0:02:39.4]} 9... d6
{[%clk 0:03:04.3]} 10. h3 {[%clk 0:02:34.6]} 10... Na5 {[%clk 0:03:04.7]} 11.
Re1 {[%clk 0:02:27]} 11... b6 {[%clk 0:03:04.1]} 12. Bd5 {[%clk 0:02:08.9]}
12... Nxd5 {[%clk 0:03:02.9]} 13. exd5 {[%clk 0:02:09.8]} 13... Bb7 {[%clk
0:02:56.9]} 14. Qd3 {[%clk 0:01:51.3]} 14... Rc8 {[%clk 0:02:55.8]} 15. Rad1
{[%clk 0:01:51.2]} 15... Nc4 {[%clk 0:02:55]} 16. Bc1 {[%clk 0:01:52.1]} 16...
Qd7 {[%clk 0:02:54.9]} 17. f4 {[%clk 0:01:49.1]} 17... Ba6 {[%clk 0:02:37.4]}
18. a4 {[%clk 0:01:29.8]} 18... Nxb2 {[%clk 0:02:34.9]} 19. Qxa6 {[%clk
0:01:26.7]} 19... Nxd1 {[%clk 0:02:36.1]} 20. Rxd1 {[%clk 0:01:27.3]} 20... Rxc3
{[%clk 0:02:36.7]} 21. Nc6 {[%clk 0:01:01.5]} 21... Rxc2 {[%clk 0:02:34.3]} 22.
Be3 {[%clk 0:01:03]} 22... Qf5 {[%clk 0:02:33.2]} 23. Qb7 {[%clk 0:00:42.7]}
23... Qe4 {[%clk 0:02:31.3]} 24. Bf2 {[%clk 0:00:42.6]} 24... Qxf4 {[%clk
0:02:30]} 25. Rf1 {[%clk 0:00:43.3]} 25... Qe4 {[%clk 0:01:51]} 26. Qxa7 {[%clk
0:00:43.5]} 26... Bf6 {[%clk 0:01:48.7]} 27. Rd1 {[%clk 0:00:34.9]} 27... Bh4
{[%clk 0:01:46.2]} 28. Rf1 {[%clk 0:00:15.3]} 28... Bxf2+ {[%clk 0:01:44.9]} 29.
Rxf2 {[%clk 0:00:16]} 29... Qe3 {[%clk 0:01:46.4]} 0-1

[Event "*** Titled Tuesday Blitz"]
[Site "Chess.com"]
[Date "2019.07.02"]
[Round "8"]
[White "ClockworkKubrick"]
[Black "MateSchmate"]
[Result "0-1"]
[WhiteElo "2105"]
[BlackElo "2368"]
[TimeControl "180+2"]
[EndTime "14:47:11 PDT"]
[Termination "MateSchmate won by checkmate"]

1. e4 {[%clk 0:03:01.9]} 1... e6 {[%clk 0:02:56.7]} 2. Nc3 {[%clk 0:02:59.5]}
2... d5 {[%clk 0:02:51.3]} 3. exd5 {[%clk 0:03:00.7]} 3... exd5 {[%clk
0:02:51.9]} 4. Nf3 {[%clk 0:03:01.5]} 4... Nf6 {[%clk 0:02:49.6]} 5. d3 {[%clk
0:03:01.6]} 5... d4 {[%clk 0:02:41.8]} 6. Ne4 {[%clk 0:03:01.7]} 6... Nxe4
{[%clk 0:02:41]} 7. dxe4 {[%clk 0:03:03.6]} 7... c5 {[%clk 0:02:42.6]} 8. Bb5+
{[%clk 0:03:01.6]} 8... Bd7 {[%clk 0:02:41.8]} 9. Qd3 {[%clk 0:03:02.4]} 9...
Bxb5 {[%clk 0:02:38.7]} 10. Qxb5+ {[%clk 0:03:02.7]} 10... Qd7 {[%clk
0:02:40.3]} 11. Qb3 {[%clk 0:02:53.1]} 11... Nc6 {[%clk 0:02:31.2]} 12. O-O
{[%clk 0:02:53.5]} 12... O-O-O {[%clk 0:02:22.4]} 13. Bf4 {[%clk 0:02:53.4]}
13... f6 {[%clk 0:02:19.7]} 14. e5 {[%clk 0:02:50.1]} 14... g5 {[%clk
0:02:07.2]} 15. e6 {[%clk 0:02:43.7]} 15... Qd5 {[%clk 0:02:07.4]} 16. Bg3
{[%clk 0:02:41]} 16... Qxb3 {[%clk 0:02:01.4]} 17. axb3 {[%clk 0:02:41.6]} 17...
Bd6 {[%clk 0:02:01.9]} 18. Rfe1 {[%clk 0:02:39.9]} 18... Rhe8 {[%clk 0:01:43.3]}
19. Nd2 {[%clk 0:01:49.7]} 19... f5 {[%clk 0:01:37.3]} 20. f3 {[%clk 0:01:39.1]}
20... Bxg3 {[%clk 0:01:34.2]} 21. hxg3 {[%clk 0:01:40]} 21... Rd6 {[%clk
0:01:35.5]} 22. e7 {[%clk 0:01:09.3]} 22... Rd7 {[%clk 0:01:24.8]} 23. Nc4
{[%clk 0:01:10.2]} 23... Rexe7 {[%clk 0:01:23.5]} 24. Rxe7 {[%clk 0:01:10.1]}
24... Rxe7 {[%clk 0:01:21.5]} 25. Nd6+ {[%clk 0:01:11.1]} 25... Kc7 {[%clk
0:01:20.7]} 26. Nxf5 {[%clk 0:01:12]} 26... Re2 {[%clk 0:01:21.9]} 27. Rc1
{[%clk 0:01:10]} 27... Nb4 {[%clk 0:01:23.1]} 28. c3 {[%clk 0:00:59.3]} 28... d3
{[%clk 0:00:56.9]} 29. cxb4 {[%clk 0:00:53]} 29... d2 {[%clk 0:00:58]} 30. Rxc5+
{[%clk 0:00:53.3]} 30... Kb6 {[%clk 0:00:58.6]} 31. Rd5 {[%clk 0:00:40.7]} 31...
Re1+ {[%clk 0:00:58.6]} 32. Kf2 {[%clk 0:00:41.5]} 32... d1=Q {[%clk 0:01:00.1]}
33. Rd2 {[%clk 0:00:42.3]} 33... Qxd2# {[%clk 0:01:00.2]} 0-1

[Event "*** Titled Tuesday Blitz"]
[Site "Chess.com"]
[Date "2019.07.02"]
[Round "8"]
[White "Gubajdullin"]
[Black "ethylalcohol"]
[Result "1-0"]
[WhiteElo "2586"]
[BlackElo "2095"]
[TimeControl "180+2"]
[EndTime "14:47:24 PDT"]
[Termination "Gubajdullin won on time"]

1. d4 {[%clk 0:03:01.9]} 1... Nf6 {[%clk 0:03:00.1]} 2. Bf4 {[%clk 0:03:02.1]}
2... g6 {[%clk 0:02:59]} 3. e3 {[%clk 0:03:00.9]} 3... Bg7 {[%clk 0:02:59.6]} 4.
Nf3 {[%clk 0:03:01.5]} 4... d6 {[%clk 0:03:00.1]} 5. Be2 {[%clk 0:03:02.6]} 5...
O-O {[%clk 0:02:58.7]} 6. O-O {[%clk 0:03:03.3]} 6... Nbd7 {[%clk 0:02:55.8]} 7.
h3 {[%clk 0:03:02.4]} 7... Re8 {[%clk 0:02:56.4]} 8. c4 {[%clk 0:03:02.1]} 8...
b6 {[%clk 0:02:53.1]} 9. Nc3 {[%clk 0:03:00.9]} 9... Bb7 {[%clk 0:02:51.9]} 10.
a4 {[%clk 0:02:56.5]} 10... e5 {[%clk 0:02:45]} 11. Bh2 {[%clk 0:02:56.4]} 11...
a5 {[%clk 0:02:19.1]} 12. Nb5 {[%clk 0:02:55.8]} 12... Ne4 {[%clk 0:02:06.1]}
13. Ne1 {[%clk 0:02:36.3]} 13... exd4 {[%clk 0:01:37.2]} 14. exd4 {[%clk
0:02:36]} 14... Rc8 {[%clk 0:01:03.2]} 15. Bf3 {[%clk 0:02:35.7]} 15... Ndf6
{[%clk 0:00:34.8]} 16. Nd3 {[%clk 0:02:30.5]} 16... Ba8 {[%clk 0:00:23.4]} 17.
Qc1 {[%clk 0:02:02.9]} 17... h6 {[%clk 0:00:19.8]} 18. h4 {[%clk 0:02:00.4]}
18... Qd7 {[%clk 0:00:17.7]} 19. Re1 {[%clk 0:01:57.3]} 19... c6 {[%clk
0:00:10.8]} 20. Nc3 {[%clk 0:01:57.1]} 20... Nxc3 {[%clk 0:00:07.4]} 21. bxc3
{[%clk 0:01:57.4]} 21... Rxe1+ {[%clk 0:00:05.4]} 22. Qxe1 {[%clk 0:01:57.6]}
22... Re8 {[%clk 0:00:06.5]} 23. Qd2 {[%clk 0:01:58.5]} 23... Ne4 {[%clk
0:00:06.6]} 24. Qc2 {[%clk 0:01:59]} 24... c5 {[%clk 0:00:06.3]} 25. d5 {[%clk
0:01:21.8]} 25... Bxc3 {[%clk 0:00:06.3]} 26. Rd1 {[%clk 0:01:19.1]} 26... Bd4
{[%clk 0:00:06.7]} 27. Bxe4 {[%clk 0:01:16.8]} 27... Rxe4 {[%clk 0:00:06.7]} 28.
Nxc5 {[%clk 0:01:17.7]} 28... Qg4 {[%clk 0:00:02.2]} 29. Nxe4 {[%clk 0:01:16.7]}
1-0

[Event "*** Titled Tuesday Blitz"]
[Site "Chess.com"]
[Date "2019.07.02"]
[Round "8"]
[White "josiwales"]
[Black "riconaipe"]
[Result "0-1"]
[WhiteElo "2467"]
[BlackElo "2498"]
[TimeControl "180+2"]
[EndTime "14:47:33 PDT"]
[Termination "riconaipe won by resignation"]

1. e4 {[%clk 0:03:00.7]} 1... c6 {[%clk 0:03:00.3]} 2. d4 {[%clk 0:03:01.7]}
2... d5 {[%clk 0:03:02.2]} 3. e5 {[%clk 0:03:02.7]} 3... Bf5 {[%clk 0:03:02.4]}
4. h4 {[%clk 0:03:03.9]} 4... h5 {[%clk 0:03:02.9]} 5. Bd3 {[%clk 0:03:04.3]}
5... Bxd3 {[%clk 0:03:00.3]} 6. Qxd3 {[%clk 0:03:06.2]} 6... e6 {[%clk
0:03:01.5]} 7. Bg5 {[%clk 0:03:07.8]} 7... Qb6 {[%clk 0:02:56.2]} 8. Nd2 {[%clk
0:02:56.4]} 8... Nd7 {[%clk 0:02:56.2]} 9. c4 {[%clk 0:02:53.4]} 9... Ne7 {[%clk
0:02:49.8]} 10. Ne2 {[%clk 0:02:46.8]} 10... Nf5 {[%clk 0:02:45.5]} 11. O-O
{[%clk 0:02:46.1]} 11... Be7 {[%clk 0:02:45.8]} 12. Bxe7 {[%clk 0:02:43.9]}
12... Kxe7 {[%clk 0:02:45.2]} 13. g3 {[%clk 0:02:38.2]} 13... Rag8 {[%clk
0:02:44.6]} 14. cxd5 {[%clk 0:02:30.4]} 14... cxd5 {[%clk 0:02:43.8]} 15. Nb3
{[%clk 0:02:29.4]} 15... g5 {[%clk 0:02:42.7]} 16. Nc3 {[%clk 0:02:29.2]} 16...
gxh4 {[%clk 0:02:33.9]} 17. Nxd5+ {[%clk 0:02:30]} 17... exd5 {[%clk 0:02:34.9]}
18. Qxf5 {[%clk 0:02:31]} 18... hxg3 {[%clk 0:02:30.5]} 19. fxg3 {[%clk
0:02:31.3]} 19... Qe6 {[%clk 0:02:21.2]} 20. Qxe6+ {[%clk 0:02:08.8]} 20... fxe6
{[%clk 0:02:15.4]} 21. Rf3 {[%clk 0:02:10.7]} 21... h4 {[%clk 0:02:15.7]} 22.
Kg2 {[%clk 0:02:09.7]} 22... Rh7 {[%clk 0:02:06.1]} 23. Rh1 {[%clk 0:02:09.2]}
23... Rgh8 {[%clk 0:01:56.3]} 24. g4 {[%clk 0:02:02.9]} 24... Rg7 {[%clk
0:01:52.9]} 25. Kh3 {[%clk 0:02:04]} 25... Rf8 {[%clk 0:01:49.6]} 26. Rhf1
{[%clk 0:02:03.2]} 26... Rfg8 {[%clk 0:01:47.2]} 27. Rf4 {[%clk 0:02:03.6]}
27... b6 {[%clk 0:01:33.1]} 28. Kxh4 {[%clk 0:02:04]} 28... Rc8 {[%clk
0:01:33.6]} 29. R1f2 {[%clk 0:01:58.9]} 29... Nf8 {[%clk 0:01:29.4]} 30. Kg3
{[%clk 0:01:57.8]} 30... Nh7 {[%clk 0:01:29.9]} 31. a4 {[%clk 0:01:49.2]} 31...
Ng5 {[%clk 0:01:30.9]} 32. Nd2 {[%clk 0:01:48.3]} 32... Rc2 {[%clk 0:01:29.2]}
33. Kg2 {[%clk 0:01:46.3]} 33... Rxb2 {[%clk 0:01:27.3]} 34. Rf8 {[%clk
0:01:46.8]} 34... Rxd2 {[%clk 0:01:24.5]} 35. Ra8 {[%clk 0:01:47.4]} 35... Rxf2+
{[%clk 0:01:12.8]} 36. Kxf2 {[%clk 0:01:49.3]} 36... Kf7 {[%clk 0:01:09.7]} 37.
Rxa7+ {[%clk 0:01:50.1]} 37... Kg6 {[%clk 0:01:11.1]} 38. Ra6 {[%clk 0:01:52]}
38... Rb7 {[%clk 0:01:11.5]} 39. Kg3 {[%clk 0:01:53.2]} 39... Ne4+ {[%clk
0:01:10.3]} 40. Kf4 {[%clk 0:01:54.4]} 40... Nd2 {[%clk 0:01:02.6]} 41. Ra8
{[%clk 0:01:52.4]} 41... Rf7+ {[%clk 0:00:56.8]} 42. Ke3 {[%clk 0:01:53.5]}
42... Nc4+ {[%clk 0:00:57.7]} 43. Ke2 {[%clk 0:01:54.6]} 43... Kg5 {[%clk
0:00:56.7]} 44. Rg8+ {[%clk 0:01:53.7]} 44... Kf4 {[%clk 0:00:57.3]} 45. Rg6
{[%clk 0:01:55.3]} 45... Ke4 {[%clk 0:00:56.6]} 46. Rxe6 {[%clk 0:01:56.2]}
46... Kxd4 {[%clk 0:00:57.8]} 47. g5 {[%clk 0:01:56.3]} 47... Rg7 {[%clk
0:00:51.1]} 48. g6 {[%clk 0:01:55.9]} 48... Nxe5 {[%clk 0:00:52.1]} 49. Rxb6
{[%clk 0:01:56.8]} 49... Rxg6 {[%clk 0:00:53.3]} 50. Rb4+ {[%clk 0:01:57.8]}
50... Nc4 {[%clk 0:00:53.6]} 51. a5 {[%clk 0:01:58.6]} 51... Ra6 {[%clk
0:00:52.1]} 0-1